bitfinex-derivatives/quotes_BNBF0:USTF0_20250126
["timestamp","ask_amount","ask_price","bid_price","bid_amount"]
[1737923734403,0.29214139,684.6,683.42,0.26874711]
[1737923735905,0.29214139,684.6,683.43,0.26874856]
[1737923736103,0.29214139,684.6,683.42,0.26874856]
[1737923736304,0.29214139,684.6,683.43,0.26874856]
[1737923736605,0.29214139,684.6,683.44,0.26874856]
[1737923736805,0.29214139,684.6,683.42,0.26874856]
[1737923736999,0.29214139,684.6,683.43,0.26874856]
[1737923737205,0.29214139,684.6,683.44,0.26874856]
[1737923737404,0.29214139,684.6,683.42,0.26874856]
[1737923737605,0.29214139,684.6,683.43,0.26874735]
[1737923737799,0.29214139,684.6,683.44,0.26874735]
[1737923738000,0.29214139,684.6,683.45,0.26874735]
[1737923738203,0.29214139,684.6,683.46,0.26874735]
[1737923738406,0.29214139,684.6,683.47,0.26874735]
[1737923738701,0.29214139,684.6,683.41,1.09550909]
[1737923739006,0.29214139,684.6,683.42,0.26874378]
[1737923739307,0.29214139,684.6,683.41,1.09550909]
[1737923740306,0.29214139,684.6,683.42,0.26874551]
[1737923740606,1.38811629,684.6,683.44,1.09550909]
[1737923742707,1.38811629,684.6,683.45,0.2687384]
[1737923744405,0.29214139,684.6,683.46,1.09550909]
[1737923747313,0.29214139,684.6,682.84,0.71390982]
[1737923747314,0.29214139,684.6,683.48,1.09550909]
[1737923749014,0.29214139,684.6,683.49,0.2687353]
[1737923750909,0.29214139,684.6,683.5,1.09550909]
[1737923750910,1.38811629,684.6,683.5,1.09550909]
[1737923751113,1.38811629,684.6,683.51,0.2687353]
[1737923751813,1.38811629,684.6,683.5,1.09550909]
[1737923752012,1.38811629,684.6,683.51,0.2687352]
[1737923753419,1.38811629,684.6,683.5,1.09550909]
[1737923754116,1.0959749,684.57,683.54,1.09550909]
[1737923754318,0.29215846,684.56,683.54,1.09550909]
[1737923757117,0.29215846,684.56,683.52,1.09550909]
[1737923760214,0.29215846,684.56,683.53,0.26873242]
[1737923761722,0.29215846,684.56,683.54,1.09550909]
[1737923767328,0.29215846,684.56,683.01,0.7602384]
[1737923767329,0.29215846,684.56,683.55,1.09550909]
[1737923772931,0.29215846,684.56,683.02,0.7602384]
[1737923772932,0.29215846,684.56,683.52,1.09550909]
[1737923773125,0.29215846,684.56,683.53,0.26872323]
[1737923776033,0.29215846,684.56,683.52,1.09550909]
[1737923776726,0.29215846,684.56,683.55,1.09550909]
[1737923779730,0.29215846,684.56,683.48,1.09550909]
[1737923782527,0.29215846,684.56,683.49,1.09550909]
[1737923786438,0.29215846,684.56,683.5,0.26871394]
[1737923790340,0.29215846,684.56,683.52,1.09550909]
[1737923793143,0.29215846,684.56,683.53,1.09550909]
[1737923795843,0.29215846,684.56,683.52,1.09550909]
[1737923796836,0.29215846,684.56,683.53,0.26871417]
[1737923798642,0.29215846,684.56,683.55,1.09550909]
[1737923801545,0.29215846,684.56,683.56,1.09550909]
[1737923805149,0.29215846,684.56,683.57,0.26871486]
[1737923806950,0.29215846,684.56,683.56,1.09550909]
[1737923807161,0.29215846,684.56,683.57,0.26871116]
[1737923808551,0.29215846,684.56,683.62,1.09550909]
[1737923815054,1.0959749,684.55,683.63,1.09550909]
[1737923815248,0.292167,684.54,683.63,1.09550909]
[1737923819056,0.292167,684.54,683.13,0.71386174]
[1737923819057,0.292167,684.54,683.6,1.09550909]
[1737923821759,0.292167,684.54,683.59,1.09550909]
[1737923830462,0.292167,684.54,683.61,1.09550909]
[1737923833964,0.292167,684.54,683.62,1.09550909]
[1737923836968,0.292167,684.54,683.5,1.09550909]
[1737923842472,0.292167,684.54,683.49,1.09550909]
[1737923845671,0.292167,684.54,683.46,1.09550909]
[1737923845875,0.292167,684.54,683.47,0.26870936]
[1737923846075,0.292167,684.54,683.46,1.09550909]
[1737923846377,0.292167,684.54,683.47,0.26870936]
[1737923847075,0.292167,684.54,683.48,0.26870956]
[1737923847271,0.292167,684.54,683.47,0.26870936]
[1737923847472,0.292167,684.54,683.46,1.09550909]
[1737923847673,0.292167,684.54,683.47,0.26870936]
[1737923848979,0.292167,684.54,683.52,1.09550909]
[1737923850978,0.292167,684.54,683.53,0.26870979]
[1737923853382,0.292167,684.54,683.52,1.09550909]
[1737923853582,0.292167,684.54,683.53,0.26870784]
[1737923854175,0.292167,684.54,683.59,1.09550909]
[1737923857282,0.292167,684.54,683.57,1.09550909]
[1737923862985,0.292167,684.54,683.51,1.09550909]
[1737923875603,0.292167,684.54,683.55,1.09550909]
[1737923879208,0.292167,684.54,683.56,0.26871521]
[1737923880903,0.292167,684.54,683.63,1.09550909]
[1737923885309,0.292167,684.54,683.55,1.09550909]
[1737923888305,0.292167,684.54,683.54,1.09550909]
[1737923891008,0.292167,684.54,683.49,1.09550909]
[1737923893509,0.292167,684.54,683.31,1.09550909]
[1737923896028,0.292167,684.54,683.29,1.09550909]
[1737923898718,0.292167,684.54,683.3,1.09550909]
[1737923901613,0.292167,684.54,683.31,0.2687426]
[1737923902019,0.292167,684.54,683.32,0.2687426]
[1737923902217,0.292167,684.54,683.27,0.2687426]
[1737923902421,0.292167,684.54,683.28,0.2687426]
[1737923902621,0.292167,684.54,683.29,0.2687426]
[1737923902821,0.292167,684.54,683.26,1.09550909]
[1737923903125,0.292167,684.54,683.27,0.268743]
[1737923903822,0.292167,684.54,683.28,0.2687459]
[1737923904121,0.292167,684.54,683.29,0.2687459]
[1737923904321,0.292167,684.54,683.27,0.2687459]
[1737923904514,0.292167,684.54,683.28,0.2687459]
[1737923904719,0.292167,684.54,683.27,0.2687459]
[1737923904916,0.292167,684.54,683.32,1.09550909]
[1737923908320,0.292167,684.54,683.31,1.09550909]
[1737923908520,0.292167,684.54,683.32,0.26874267]
[1737923912328,0.292167,684.54,683.39,1.09550909]
[1737923912528,0.292167,684.54,683.4,0.26874267]
[1737923913629,0.292167,684.54,683.39,1.09550909]
[1737923913927,0.292167,684.54,683.4,0.26874178]
[1737923915026,0.292167,684.54,683.4,1.36425087]
[1737923915227,0.292167,684.54,683.41,0.26874178]
[1737923915527,0.292167,684.54,683.42,0.26873935]
[1737923915730,0.292167,684.54,683.41,0.26873935]
[1737923916027,0.292167,684.54,683.42,0.26873935]
[1737923916224,0.292167,684.54,683.43,0.26873935]
[1737923916529,0.292167,684.54,683.44,0.26873935]
[1737923916726,0.292167,684.54,683.4,1.09550909]
[1737923916932,0.292167,684.54,683.41,0.2687388]
[1737923917432,0.292167,684.54,683.42,0.26874122]
[1737923917630,0.292167,684.54,683.43,1.09550909]
[1737923917931,0.292167,684.54,683.44,0.26874122]
[1737923918934,0.292167,684.54,683.43,1.09550909]
[1737923921335,0.292167,684.54,683.5,1.09550909]
[1737923924939,0.292167,684.54,683.3,1.09550909]
[1737923928040,0.292167,684.54,683.29,1.09550909]
[1737923928844,0.292167,684.54,683.3,0.26876133]
[1737923929939,0.292167,684.54,683.31,0.26875666]
[1737923930243,0.292167,684.54,683.32,0.26875666]
[1737923930444,0.292167,684.54,683.3,0.26875666]
[1737923930643,0.292167,684.54,683.31,0.26875666]
[1737923930943,0.292167,684.54,683.32,0.26875666]
[1737923931244,0.292167,684.54,683.33,0.26875666]
[1737923931446,0.292167,684.54,683.38,1.09550909]
[1737923931845,0.292167,684.54,683.39,0.26876253]
[1737923934645,0.292167,684.54,683.41,1.09550909]
[1737923934845,0.292167,684.54,683.42,0.26876253]
[1737923938747,0.292167,684.54,683.43,1.09550909]
[1737923939247,0.292167,684.54,683.44,0.26875799]
[1737923940647,0.292167,684.54,683.43,1.09550909]
[1737923941650,1.0959749,684.53,683.45,1.09550909]
[1737923941844,0.29217553,684.52,683.45,1.09550909]
[1737923943950,0.29217553,684.52,683.42,1.09550909]
[1737923944151,0.29217553,684.52,683.43,0.26875482]
[1737923945250,0.29217553,684.52,683.42,1.09550909]
[1737923946148,0.29217553,684.52,683.43,0.26875474]
[1737923947249,0.29217553,684.52,683.42,1.09550909]
[1737923947446,0.29217553,684.52,683.43,1.09550909]
[1737923947653,0.29217553,684.52,683.44,0.26875406]
[1737923948947,0.29217553,684.52,683.43,1.09550909]
[1737923950647,0.29217553,684.52,683.44,0.26875364]
[1737923951450,0.29217553,684.52,683.44,1.36426273]
[1737923951753,0.29217553,684.52,683.45,0.26875364]
[1737923955356,0.29217553,684.52,683.49,1.09550909]
[1737923957962,1.0959749,684.48,683.51,1.09550909]
[1737923958159,0.29219688,684.47,683.51,1.09550909]
[1737923964168,0.29219688,684.47,683.52,1.09550909]
[1737923966470,0.29219688,684.47,683.51,1.09550909]
[1737923969467,0.29219688,684.47,683.5,1.09550909]
[1737923972276,1.38817178,684.47,683.53,1.09550909]
[1737923975379,0.29219688,684.47,683.52,1.09550909]
[1737923978679,0.29219688,684.47,683.42,1.09550909]
[1737923986885,0.29219688,684.47,683.43,0.26875113]
[1737923987285,0.29219688,684.47,683.44,0.26875155]
[1737923987480,0.29219688,684.47,683.45,0.26875155]
[1737923987680,0.29219688,684.47,683.43,0.26875155]
[1737923987880,0.29219688,684.47,683.44,0.26875155]
[1737923988079,0.29219688,684.47,683.45,0.26875155]
[1737923988282,0.29219688,684.47,683.46,0.26875155]
[1737923988483,0.29219688,684.47,683.42,1.09550909]
[1737923988484,0.29219688,684.47,683.43,0.26875155]
[1737923988679,0.29219688,684.47,683.42,1.09550909]
[1737923989186,0.29219688,684.47,683.43,0.26875135]
[1737923989880,0.29219688,684.47,683.42,1.09550909]
[1737923991389,0.29219688,684.47,683.49,1.09550909]
[1737923994889,0.29219688,684.47,683.45,1.09550909]
[1737923998183,0.29219688,684.47,683.37,1.09550909]
[1737924001793,0.29219688,684.47,683.36,1.09550909]
[1737924003989,0.29219688,684.47,683.37,0.26870371]
[1737924005593,0.29219688,684.47,683.35,1.52610941]
[1737924005793,0.29219688,684.47,683.36,0.26870524]
[1737924007996,0.29219688,684.47,683.37,0.26870485]
[1737924008195,0.29219688,684.47,683.36,0.26870485]
[1737924008396,0.29219688,684.47,683.37,0.26870485]
[1737924008597,0.29219688,684.47,683.36,0.26870485]
[1737924008791,0.29219688,684.47,683.37,0.26870485]
[1737924008994,0.29219688,684.47,683.38,0.26870485]
[1737924009196,0.29219688,684.47,683.46,1.09550909]
[1737924009399,0.29219688,684.47,683.47,0.26870485]
[1737924009894,0.29219688,684.47,683.48,0.2687037]
[1737924010096,0.29219688,684.47,683.47,0.2687037]
[1737924010295,0.29219688,684.47,683.48,0.2687037]
[1737924010597,0.29219688,684.47,683.49,0.2687037]
[1737924010789,0.29219688,684.47,683.47,0.2687037]
[1737924010990,0.29219688,684.47,683.48,0.2687037]
[1737924011192,0.29219688,684.47,683.49,0.2687037]
[1737924011500,0.29219688,684.47,683.5,0.2687037]
[1737924011797,0.29219688,684.47,683.51,0.2687037]
[1737924011991,0.29219688,684.47,683.52,0.2687037]
[1737924012194,0.29219688,684.47,683.53,0.2687037]
[1737924012390,0.29219688,684.47,683.54,0.2687037]
[1737924012589,0.29219688,684.47,683.47,0.2687037]
[1737924012795,0.29219688,684.47,683.48,0.2687037]
[1737924012990,0.29219688,684.47,683.46,1.09550909]
[1737924012991,0.29219688,684.47,683.49,0.2687037]
[1737924013195,0.29219688,684.47,683.47,0.2687037]
[1737924013391,0.29219688,684.47,683.48,0.2687037]
[1737924013598,0.29219688,684.47,683.49,0.2687037]
[1737924013794,0.29219688,684.47,683.47,0.2687037]
[1737924013994,0.29219688,684.47,683.48,0.2687037]
[1737924014198,0.29219688,684.47,683.49,0.2687037]
[1737924014393,0.29219688,684.47,683.47,0.2687037]
[1737924014596,0.29219688,684.47,683.48,0.2687037]
[1737924014797,0.29219688,684.47,683.47,0.2687037]
[1737924014996,0.29219688,684.47,683.48,0.2687037]
[1737924015196,0.29219688,684.47,683.47,0.2687037]
[1737924015700,0.29219688,684.47,683.48,1.09550909]
[1737924015900,0.29219688,684.47,683.49,0.2687037]
[1737924019799,0.29219688,684.47,683.47,1.09550909]
[1737924020104,0.29219688,684.47,683.48,0.26870608]
[1737924021704,0.29219688,684.47,683.43,0.26870608]
[1737924021904,0.29219688,684.47,683.44,0.26870608]
[1737924022101,0.29219688,684.47,683.45,0.26870608]
[1737924022302,0.29219688,684.47,683.46,0.2687092]
[1737924022502,0.29219688,684.47,683.43,0.2687092]
[1737924022702,0.29219688,684.47,683.44,0.2687092]
[1737924022899,0.29219688,684.47,683.45,0.2687092]
[1737924023100,0.29219688,684.47,683.43,0.2687092]
[1737924023300,0.29219688,684.47,683.44,0.2687092]
[1737924023504,0.29219688,684.47,683.43,0.2687092]
[1737924023705,0.29219688,684.47,683.44,0.2687092]
[1737924023904,0.29219688,684.47,683.43,0.2687092]
[1737924025003,0.29219688,684.47,683.44,1.09550909]
[1737924025301,0.29219688,684.47,683.45,0.2687092]
[1737924026909,0.29219688,684.47,683.44,1.09550909]
[1737924028215,0.29219688,684.47,683.45,0.26872123]
[1737924028617,0.29219688,684.47,683.45,1.36423032]
[1737924028816,0.29219688,684.47,683.45,1.09550909]
[1737924029312,0.29219688,684.47,683.46,0.26872155]
[1737924032719,0.29219688,684.47,683.52,1.09550909]
[1737924034115,0.29219688,684.47,683.53,0.26872155]
[1737924034319,0.29219688,684.47,683.52,1.09550909]
[1737924034721,0.29219688,684.47,683.53,0.26872144]
[1737924035820,0.29219688,684.47,683.52,1.09550909]
[1737924036721,0.29219688,684.47,683.53,0.26872128]
[1737924040024,0.29219688,684.47,683.52,1.09550909]
[1737924040226,0.29219688,684.47,683.53,0.26872222]
[1737924040425,0.29219688,684.47,683.54,1.09550909]
[1737924040624,0.29219688,684.47,683.55,0.26872222]
[1737924041626,0.29219688,684.47,683.54,1.09550909]
[1737924042028,0.29219688,684.47,683.55,0.2687208]
[1737924043123,0.29219688,684.47,683.54,1.09550909]
[1737924047130,0.29219688,684.47,683.42,1.09550909]
[1737924049533,0.29219688,684.47,683.36,1.09550909]
[1737924052036,0.29219688,684.47,683.37,1.09550909]
[1737924054636,0.29219688,684.47,682.97,0.75999289]
[1737924054637,0.29219688,684.47,683.4,1.09550909]
[1737924055638,0.29219688,684.47,683.41,0.26872449]
[1737924056241,0.29219688,684.47,683.4,1.09550909]
[1737924056434,0.29219688,684.47,683.41,0.26872549]
[1737924056835,0.29219688,684.47,683.55,1.09550909]
[1737924060043,0.29219688,684.47,683.51,1.09550909]
[1737924062341,0.29219688,684.47,683.5,1.09550909]
[1737924065447,0.29219688,684.47,683.49,1.09550909]
[1737924069047,0.29219688,684.47,683.51,1.09550909]
[1737924071449,0.29219688,684.47,683.29,1.09550909]
[1737924071450,0.29219688,684.47,683.54,1.09550909]
[1737924074748,0.29219688,684.47,683.56,1.09550909]
[1737924077552,0.29219688,684.47,683.57,1.09550909]
[1737924080857,0.29219688,684.47,683.58,1.09550909]
[1737924083260,0.29219688,684.47,683.61,1.09550909]
[1737924086261,0.29219688,684.47,683.08,0.71387507]
[1737924086262,0.29219688,684.47,683.59,1.09550909]
[1737924089164,0.29219688,684.47,683.6,1.09550909]
[1737924092164,0.29219688,684.47,683.55,1.09550909]
[1737924094761,0.29219688,684.47,683.57,1.09550909]
[1737924097765,0.29219688,684.47,683.55,1.09550909]
[1737924099061,0.29219688,684.47,683.56,0.26871819]
[1737924099266,0.29219688,684.47,683.55,1.09550909]
[1737924099570,0.29219688,684.47,683.56,0.26872106]
[1737924099868,0.29219688,684.47,683.55,1.09550909]
[1737924100163,0.29219688,684.47,683.56,0.26872161]
[1737924100773,0.29219688,684.47,683.55,1.09550909]
[1737924103568,0.29219688,684.47,683.59,1.09550909]
[1737924107381,0.29219688,684.47,683.62,1.09550909]
[1737924110484,0.29219688,684.47,683.63,1.09550909]
[1737924112785,0.29219688,684.47,683.44,1.09550909]
[1737924119388,0.29219688,684.47,683.45,0.26872422]
[1737924119784,0.29219688,684.47,683.45,1.36423331]
[1737924119982,0.29219688,684.47,683.46,0.26872422]
[1737924122392,0.29219688,684.47,683.57,1.09550909]
[1737924130300,0.29219688,684.47,683.56,1.09550909]
[1737924132200,0.29219688,684.47,683.31,1.09550909]
[1737924135002,0.29219688,684.47,683.29,1.09550909]
[1737924137504,0.29219688,684.47,683.3,1.09550909]
[1737924140208,0.29219688,684.47,683.25,1.09550909]
[1737924140408,0.29219688,684.47,683.26,0.26876748]
[1737924143212,0.29219688,684.47,683.37,1.09550909]
[1737924143413,0.29219688,684.47,683.38,0.26876748]
[1737924145413,0.29219688,684.47,683.39,0.26876357]
[1737924145607,0.29219688,684.47,683.38,0.26876357]
[1737924145809,0.29219688,684.47,683.37,1.09550909]
[1737924146009,0.29219688,684.47,683.38,0.26876429]
[1737924146220,0.29219688,684.47,683.37,1.09550909]
[1737924146511,0.29219688,684.47,683.35,1.09550909]
[1737924146707,0.29219688,684.47,683.36,0.26876861]
[1737924149107,0.29219688,684.47,683.37,0.26876861]
[1737924149412,0.29219688,684.47,683.38,0.26876861]
[1737924149607,0.29219688,684.47,683.34,0.26876861]
[1737924152015,0.29219688,684.47,683.36,1.09550909]
[1737924152315,0.29219688,684.47,683.37,0.26876861]
[1737924154313,0.29219688,684.47,683.35,0.26876861]
[1737924157319,0.29219688,684.47,683.37,1.09550909]
[1737924157518,0.29219688,684.47,683.38,0.26876861]
[1737924160520,0.29219688,684.47,683.39,1.09550909]
[1737924160720,0.29219688,684.47,683.4,0.26876861]
[1737924164824,0.29219688,684.47,683.43,1.09550909]
[1737924165617,0.29219688,684.47,683.44,0.26875962]
[1737924166123,0.29219688,684.47,683.43,1.09550909]
[1737924166523,0.29219688,684.47,683.44,0.268759]
[1737924168329,0.29219688,684.47,683.46,1.09550909]
[1737924169129,0.29219688,684.47,683.47,0.268759]
[1737924170526,0.29219688,684.47,683.48,0.26875955]
[1737924170723,0.29219688,684.47,683.47,0.26875955]
[1737924171323,1.38817178,684.47,683.52,1.09550909]
[1737924175831,1.38817178,684.47,683.02,0.71394979]
[1737924175832,0.29219688,684.47,683.48,1.09550909]
[1737924179239,0.29219688,684.47,683.45,1.09550909]
[1737924184242,0.29219688,684.47,683.46,0.26876877]
[1737924185642,0.29219688,684.47,683.46,1.09550909]
[1737924188247,0.29219688,684.47,683.45,1.09550909]
[1737924191446,0.29219688,684.47,683.48,1.09550909]
[1737924194247,0.29219688,684.47,683.46,1.09550909]
[1737924197853,0.29219688,684.47,683.44,1.09550909]
[1737924202159,0.29219688,684.47,683.46,1.09550909]
[1737924205562,0.29219688,684.47,683.4,1.09550909]
[1737924209567,0.29219688,684.47,683.37,1.09550909]
[1737924213171,0.29219688,684.47,683.34,1.09550909]
[1737924213371,0.29219688,684.47,683.35,0.26877916]
[1737924215766,0.29219688,684.47,683.37,1.09550909]
[1737924219873,0.29219688,684.47,682.77,0.71400554]
[1737924219874,0.29219688,684.47,683.32,1.09550909]
[1737924220271,0.29219688,684.47,683.33,0.26878379]
[1737924220777,0.29219688,684.47,683.32,1.09550909]
[1737924226484,0.29219688,684.47,683.33,0.26878377]
[1737924228282,0.29219688,684.47,683.38,1.09550909]
[1737924231783,0.29219688,684.47,683.37,1.09550909]
[1737924234881,0.29219688,684.47,683.33,1.09550909]
[1737924237787,0.29219688,684.47,683.35,1.09550909]
[1737924241591,0.29219688,684.47,682.97,0.7601431]
[1737924241592,0.29219688,684.47,683.33,1.09550909]
[1737924244389,0.29219688,684.47,683.36,1.09550909]
[1737924249798,0.29219688,684.47,683.29,1.09550909]
[1737924253300,0.29219688,684.47,683.32,1.09550909]
[1737924256202,0.29219688,684.47,683.33,0.26879428]
[1737924256904,0.29219688,684.47,683.34,0.26879387]
[1737924258504,0.29219688,684.47,683.35,0.26879339]
[1737924258703,0.29219688,684.47,683.36,0.26879339]
[1737924259001,0.29219688,684.47,683.33,1.09550909]
[1737924259002,0.29219688,684.47,683.37,0.26879339]
[1737924259202,0.29219688,684.47,683.38,0.26879339]
[1737924259405,0.29219688,684.47,683.33,1.09550909]
[1737924259703,0.29219688,684.47,683.34,0.26879184]
[1737924260303,0.29219688,684.47,683.35,0.26879187]
[1737924260603,0.29219688,684.47,683.36,0.26879187]
[1737924260803,0.29219688,684.47,682.97,0.7601431]
[1737924260804,1.0959749,684.45,683.4,1.09550909]
[1737924261003,0.29220968,684.44,683.4,1.09550909]
[1737924265103,0.29220968,684.44,683.41,1.09550909]
[1737924265104,1.0959749,684.42,683.41,1.09550909]
[1737924265301,0.29222249,684.41,683.41,1.09550909]
[1737924268110,0.29222249,684.41,683.43,1.09550909]
[1737924275414,1.38819739,684.41,683.42,1.09550909]
[1737924277809,1.0959749,684.38,683.41,1.09550909]
[1737924278114,0.29223957,684.37,683.41,1.09550909]
[1737924284620,0.29223957,684.37,683.36,1.09550909]
[1737924288320,0.29223957,684.37,683.37,1.09550909]
[1737924291119,0.29223957,684.37,682.97,0.76046635]
[1737924291120,0.29223957,684.37,683.35,1.09550909]
[1737924293322,0.29223957,684.37,683.36,0.26878429]
[1737924293521,0.29223957,684.37,683.35,1.09550909]
[1737924294623,0.29223957,684.37,683.38,1.09550909]
[1737924297723,0.29223957,684.37,683.32,1.09550909]
[1737924300624,0.29223957,684.37,683.31,1.09550909]
[1737924303427,0.29223957,684.37,683.32,0.26878711]
[1737924306722,0.29223957,684.37,683.36,1.09550909]
[1737924310024,0.29223957,684.37,683.39,1.09550909]
[1737924316927,0.29223957,684.37,682.97,0.76051379]
[1737924316928,0.29223957,684.37,683.33,1.09550909]
[1737924319836,0.29223957,684.37,683.32,1.09550909]
[1737924321335,0.29223957,684.37,683.33,0.26879398]
[1737924321632,0.29223957,684.37,683.32,1.09550909]
[1737924323234,0.29223957,684.37,683.37,1.09550909]
[1737924328439,0.29223957,684.37,683.34,1.09550909]
[1737924330241,0.29223957,684.37,683.11,1.09550909]
[1737924333941,0.29223957,684.37,683.04,1.09550909]
[1737924336444,0.29223957,684.37,683.05,0.26882925]
[1737924338646,0.29223957,684.37,683.04,1.09550909]
[1737924338840,0.29223957,684.37,683.05,0.2688311]
[1737924340748,0.29223957,684.37,683.03,1.09550909]
[1737924341046,0.29223957,684.37,683.04,0.26883108]
[1737924342851,0.29223957,684.37,683.03,1.09550909]
[1737924343752,0.29223957,684.37,682.96,0.29284291]
[1737924343753,0.29223957,684.37,683.07,1.09550909]
[1737924346850,0.29223957,684.37,682.96,0.29284291]
[1737924356354,0.29223957,684.37,682.97,0.26884909]
[1737924357159,0.29223957,684.37,682.96,0.29284291]
[1737924357357,0.29223957,684.37,682.97,0.26884983]
[1737924359762,0.29223957,684.37,682.99,1.09550909]
[1737924359962,0.29223957,684.37,683.0,0.26884983]
[1737924360363,0.29223957,684.37,682.99,1.09550909]
[1737924362764,0.29223957,684.37,682.97,1.09550909]
[1737924365367,0.29223957,684.37,682.98,0.26885491]
[1737924365665,0.29223957,684.37,682.99,1.09550909]
[1737924367364,0.29223957,684.37,683.0,0.26885561]
[1737924367766,0.29223957,684.37,683.01,0.26886027]
[1737924367965,0.29223957,684.37,683.02,0.26886027]
[1737924368167,0.29223957,684.37,683.0,0.26886027]
[1737924368365,0.29223957,684.37,682.99,1.09550909]
[1737924368565,0.29223957,684.37,683.0,0.26885687]
[1737924368766,0.29223957,684.37,683.01,1.09550909]
[1737924369068,0.29223957,684.37,683.02,0.26885687]
[1737924369771,0.29223957,684.37,683.01,1.09550909]
[1737924370171,0.29223957,684.37,683.02,0.26886063]
[1737924372075,0.29223957,684.37,683.08,1.09550909]
[1737924372373,0.29223957,684.37,683.09,0.26886063]
[1737924375176,0.29223957,684.37,683.12,1.09550909]
[1737924377375,0.29223957,684.37,682.96,0.29284291]
[1737924377376,0.29223957,684.37,683.13,1.09550909]
[1737924379379,0.29223957,684.37,683.14,0.2688519]
[1737924379579,0.29223957,684.37,683.13,1.09550909]
[1737924380178,0.29223957,684.37,683.14,0.26885198]
[1737924380377,0.29223957,684.37,683.13,1.09550909]
[1737924380575,0.29223957,684.37,683.15,1.09550909]
[1737924380779,0.29223957,684.37,683.16,0.26885198]
[1737924383984,0.29223957,684.37,683.15,1.09550909]
[1737924384286,1.0959749,684.32,683.2,1.09550909]
[1737924384583,0.2922652,684.31,683.2,1.09550909]
[1737924387184,0.2922652,684.31,683.08,1.09550909]
[1737924389678,0.2922652,684.31,683.06,1.09550909]
[1737924395886,0.2922652,684.31,682.96,0.29284291]
[1737924395887,0.2922652,684.31,683.08,1.09550909]
[1737924396184,0.2922652,684.31,683.09,0.26886238]
[1737924398487,1.0959749,684.3,683.2,1.09550909]
[1737924398682,0.29227374,684.29,683.2,1.09550909]
[1737924402482,0.29227374,684.29,683.21,0.26886467]
[1737924403788,0.29227374,684.29,683.2,1.09550909]
[1737924404486,1.0959749,684.24,683.23,1.09550909]
[1737924404689,0.29229937,684.23,683.23,1.09550909]
[1737924406795,0.29229937,684.23,683.21,1.09550909]
[1737924414995,0.29229937,684.23,683.22,0.26886318]
[1737924416797,0.29229937,684.23,683.21,1.09550909]
[1737924417002,0.29229937,684.23,683.22,0.26886083]
[1737924418204,0.29229937,684.23,683.28,1.09550909]
[1737924418205,1.0959749,684.2,683.28,1.09550909]
[1737924418406,0.29231646,684.19,683.28,1.09550909]
[1737924421104,0.29231646,684.19,683.26,1.09550909]
[1737924426813,0.29231646,684.19,683.24,1.09550909]
[1737924432120,0.29231646,684.19,683.22,1.09550909]
[1737924437922,0.29231646,684.19,683.2,1.09550909]
[1737924443422,0.29231646,684.19,683.17,1.09550909]
[1737924450036,0.29231646,684.19,683.19,1.09550909]
[1737924452238,0.29231646,684.19,683.21,1.09550909]
[1737924463143,0.29231646,684.19,683.2,1.09550909]
[1737924466946,0.29231646,684.19,683.05,1.09550909]
[1737924470145,0.29231646,684.19,683.06,1.09550909]
[1737924472646,0.29231646,684.19,683.05,1.09550909]
[1737924472846,0.29231646,684.19,683.06,0.26886117]
[1737924475144,0.29231646,684.19,683.16,1.09550909]
[1737924480051,0.29231646,684.19,683.17,0.26885934]
[1737924480850,0.29231646,684.19,683.18,1.09550909]
[1737924486549,0.29231646,684.19,683.13,1.09550909]
[1737924489551,0.29231646,684.19,683.14,1.09550909]
[1737924493260,0.29231646,684.19,683.16,1.09550909]
[1737924495861,0.29231646,684.19,683.17,1.09550909]
[1737924498162,0.29231646,684.19,683.19,1.09550909]
[1737924503760,0.29231646,684.19,683.21,1.09550909]
[1737924506862,0.29231646,684.19,683.23,1.09550909]
[1737924509267,0.29231646,684.19,683.22,1.09550909]
[1737924511663,0.29231646,684.19,683.23,0.26885959]
[1737924512061,0.29231646,684.19,683.26,1.09550909]
[1737924514868,0.29231646,684.19,683.27,1.09550909]
[1737924517373,0.29231646,684.19,683.26,1.09550909]
[1737924521075,0.29231646,684.19,683.04,1.09550909]
[1737924521569,0.29231646,684.19,683.05,0.26881163]
[1737924522376,0.29231646,684.19,683.06,0.26881235]
[1737924522566,0.29231646,684.19,683.04,1.09550909]
[1737924522879,0.29231646,684.19,683.05,0.26881251]
[1737924524378,0.29231646,684.19,683.06,1.09550909]
[1737924525079,0.29231646,684.19,683.07,0.26881188]
[1737924526274,0.29231646,684.19,683.08,0.26880817]
[1737924526476,0.29231646,684.19,683.07,0.26880817]
[1737924526680,0.29231646,684.19,683.08,0.26880817]
[1737924526881,0.29231646,684.19,683.09,0.26880817]
[1737924527081,0.29231646,684.19,683.06,1.09550909]
[1737924527477,0.29231646,684.19,683.07,0.26880884]
[1737924528586,0.29231646,684.19,683.06,1.09550909]
[1737924528777,0.29231646,684.19,683.07,0.26881204]
[1737924531377,0.29231646,684.19,683.04,0.26881204]
[1737924531581,0.29231646,684.19,683.05,0.26881204]
[1737924531781,0.29231646,684.19,683.06,0.26881204]
[1737924531982,0.29231646,684.19,683.04,0.26881204]
[1737924532182,0.29231646,684.19,683.05,0.26881204]